bitfinex-derivatives/quotes_SOLF0:USTF0_20250428
["timestamp","ask_amount","ask_price","bid_price","bid_amount"]
[1745849051338,4.087,148.65,148.56,6.7286]
[1745849051745,4.087,148.65,148.48,1.9522]
[1745849051946,1.9209,148.66,148.48,1.9522]
[1745849052142,1.9209,148.66,148.49,1.20961215]
[1745849052338,90.39566949,148.72,148.49,362.20961215]
[1745849052543,2.1001,148.71,148.5,63.20961215]
[1745849052742,6.7231,148.69,148.51,1.20961215]
[1745849052943,2.1001,148.71,148.52,1.20916892]
[1745849053347,7.11273,148.7,148.67,6.7236]
[1745849053647,7.11273,148.7,148.58,484.46]
[1745849053948,6.7233,148.69,148.59,2.0349]
[1745849054149,0.38993,148.7,148.59,2.0349]
[1745849054345,6.7236,148.68,148.64,6.725]
[1745849054545,6.7236,148.68,148.59,2.0349]
[1745849054745,0.38993,148.7,148.59,2.0349]
[1745849054946,6.7235,148.68,148.59,2.0349]
[1745849055245,0.38993,148.7,148.59,2.0349]
[1745849055439,6.7236,148.68,148.65,6.7248]
[1745849055645,0.38993,148.7,148.59,2.0349]
[1745849055947,6.7231,148.69,148.66,6.7242]
[1745849056145,0.38993,148.7,148.59,2.0349]
[1745849056345,0.38993,148.7,148.67,6.7238]
[1745849057051,0.38993,148.7,148.59,2.0349]
[1745849057550,0.38993,148.7,148.67,6.7236]
[1745849057852,0.38993,148.7,148.59,2.0349]
[1745849058150,0.38993,148.7,148.68,6.7233]
[1745849058649,0.38993,148.7,148.59,2.0349]
[1745849059240,0.38993,148.7,148.67,6.7238]
[1745849060047,0.38993,148.7,148.59,2.0349]
[1745849060252,0.38993,148.7,148.67,6.7235]
[1745849060953,0.38993,148.7,148.66,6.7243]
[1745849061251,0.38993,148.7,148.59,2.0349]
[1745849061952,7.11263,148.7,148.66,6.7241]
[1745849062148,3.9712,148.73,148.59,2.0349]
[1745849062347,1.9974,148.72,148.59,2.0349]
[1745849063653,6.7233,148.69,148.65,6.7245]
[1745849064057,1.9974,148.72,148.59,2.0349]
[1745849064247,1.9974,148.72,148.58,484.46]
[1745849064655,6.7249,148.65,148.61,6.7263]
[1745849064860,22.1974,148.72,148.58,484.46]
[1745849065252,6.7247,148.66,148.61,6.7266]
[1745849065453,1.9784,148.65,148.61,6.7266]
[1745849065656,6.7255,148.64,148.6,6.7269]
[1745849065858,1.9784,148.65,148.58,484.46]
[1745849066356,1.9784,148.65,148.52,4.0042]
[1745849066555,1.9784,148.65,148.52,6.0591]
[1745849066752,1.9784,148.65,148.6,6.7268]
[1745849066953,1.9784,148.65,148.52,6.0591]
[1745849067357,6.7253,148.64,148.6,6.7267]
[1745849067658,1.9784,148.65,148.52,6.0591]
[1745849068356,1.9784,148.65,148.62,6.7259]
[1745849068753,1.9784,148.65,148.54,13.4595]
[1745849068953,6.7253,148.64,148.54,13.4595]
[1745849069153,1.9784,148.65,148.54,13.4595]
[1745849069960,1.9784,148.65,148.52,6.0591]
[1745849070959,1.9784,148.65,148.52,68.0591]
[1745849071651,1.9784,148.65,148.61,6.7263]
[1745849071852,1.9784,148.65,148.53,13.4604]
[1745849072059,6.7255,148.64,148.61,6.7264]
[1745849072362,1.9784,148.65,148.53,13.4604]
[1745849072756,6.7255,148.64,148.61,6.7266]
[1745849072951,6.7255,148.64,148.53,13.4604]
[1745849073152,1.9784,148.65,148.52,68.0591]
[1745849073358,6.7242,148.67,148.64,6.7253]
[1745849073854,6.7242,148.67,148.56,6.7287]
[1745849074159,2.079,148.71,148.52,68.0591]
[1745849074361,2.079,148.71,148.53,21.39971068]
[1745849074553,2.079,148.71,148.67,6.7237]
[1745849074861,2.079,148.71,148.58,13.4557]
[1745849075060,2.079,148.71,148.59,6.1654]
[1745849075257,6.7232,148.69,148.66,6.7241]
[1745849075453,2.079,148.71,148.59,6.1654]
[1745849075858,2.079,148.71,148.62,6.726]
[1745849076057,2.079,148.71,148.59,6.1654]
[1745849076458,2.079,148.71,148.59,2.0366]
[1745849076660,2.079,148.71,148.54,6.0109]
[1745849077060,2.079,148.71,148.6,6.7269]
[1745849077260,2.079,148.71,148.54,6.0109]
[1745849078161,6.7258,148.63,148.59,6.7273]
[1745849078364,2.079,148.71,148.54,6.0109]
[1745849078566,6.7255,148.64,148.6,6.727]
[1745849078966,2.079,148.71,148.54,6.0109]
[1745849079163,2.079,148.71,148.55,13.4585]
[1745849079666,6.724,148.67,148.55,13.4585]
[1745849080168,6.724,148.67,148.64,6.7252]
[1745849080966,6.724,148.67,148.55,13.4585]
[1745849080967,6.724,148.67,148.63,6.7255]
[1745849081161,2.079,148.71,148.63,6.7255]
[1745849081362,2.079,148.71,148.62,6.7259]
[1745849081563,6.7242,148.67,148.62,6.7259]
[1745849081862,2.079,148.71,148.62,6.7259]
[1745849082265,6.7247,148.66,148.55,13.4585]
[1745849082869,6.7249,148.65,148.61,6.7263]
[1745849083069,2.079,148.71,148.55,13.4585]
[1745849083368,2.079,148.71,148.61,6.7264]
[1745849083570,2.079,148.71,148.55,13.4585]
[1745849083967,6.7251,148.65,148.61,6.7266]
[1745849084268,2.079,148.71,148.55,13.4585]
[1745849084567,6.7251,148.65,148.61,6.7265]
[1745849085371,6.7255,148.64,148.55,13.4585]
[1745849085670,2.079,148.71,148.55,13.4585]
[1745849085970,6.7252,148.65,148.55,13.4585]
[1745849086165,2.079,148.71,148.55,13.4585]
[1745849086366,6.7254,148.64,148.55,13.4585]
[1745849086566,2.079,148.71,148.55,13.4585]
[1745849086969,6.7252,148.65,148.61,6.7264]
[1745849087170,2.079,148.71,148.61,6.7264]
[1745849087771,2.079,148.71,148.6,6.7269]
[1745849087968,2.079,148.71,148.55,13.4585]
[1745849088171,6.725,148.65,148.55,13.4585]
[1745849088773,6.725,148.65,148.61,6.7262]
[1745849089372,2.079,148.71,148.55,13.4585]
[1745849089771,2.079,148.71,148.56,13.4577]
[1745849089968,2.079,148.71,148.54,6.0109]
[1745849090168,2.079,148.71,148.57,13.4568]
[1745849090370,6.7241,148.67,148.64,6.725]
[1745849090671,2.079,148.71,148.64,6.725]
[1745849090970,2.079,148.71,148.54,6.0109]
[1745849091273,2.079,148.71,148.58,13.4558]
[1745849091574,6.7233,148.69,148.58,13.4558]
[1745849091772,2.079,148.71,148.58,13.4558]
[1745849091973,6.7232,148.69,148.66,6.7241]
[1745849092171,2.079,148.71,148.66,6.7241]
[1745849092474,2.079,148.71,148.58,13.4558]
[1745849093475,2.079,148.71,148.54,19.4702]
[1745849093674,2.079,148.71,148.54,6.0109]
[1745849093872,2.079,148.71,148.63,6.7255]
[1745849094276,6.7246,148.66,148.63,6.7255]
[1745849094575,2.079,148.71,148.55,13.4586]
[1745849094771,2.079,148.71,148.54,6.0109]
[1745849094981,6.7234,148.69,148.65,6.7245]
[1745849095186,2.079,148.71,148.54,6.0109]
[1745849095386,2.079,148.71,148.57,13.4565]
[1745849095573,6.7232,148.69,148.65,6.7245]
[1745849095777,2.079,148.71,148.58,13.4559]
[1745849095974,6.7233,148.69,148.58,13.4559]
[1745849096583,6.7236,148.68,148.64,6.7249]
[1745849097886,2.079,148.71,148.64,6.7249]
[1745849098185,2.079,148.71,148.65,6.7248]
[1745849098381,6.7233,148.69,148.65,6.7248]
[1745849098581,2.079,148.71,148.56,484.18]
[1745849098785,2.079,148.71,148.62,6.7259]
[1745849099187,2.079,148.71,148.63,6.7256]
[1745849099488,2.079,148.71,148.56,484.18]
[1745849099685,2.079,148.71,148.63,6.7254]
[1745849099987,2.079,148.71,148.56,484.18]
[1745849100188,2.079,148.71,148.64,6.725]
[1745849100988,6.723,148.69,148.65,6.7248]
[1745849101187,2.079,148.71,148.65,6.7248]
[1745849101389,6.7237,148.68,148.64,6.7251]
[1745849101588,6.7237,148.68,148.56,484.18]
[1745849101790,484.22,148.73,148.56,484.18]
[1745849101991,2.0261,148.72,148.66,6.7243]
[1745849103192,6.723,148.7,148.66,6.7243]
[1745849103492,2.0261,148.72,148.66,6.7243]
[1745849103887,6.7229,148.7,148.66,6.7243]
[1745849104294,2.0261,148.72,148.56,484.18]
[1745849104892,6.7228,148.7,148.6,6.7267]
[1745849105088,6.7228,148.7,148.61,3.9815]
[1745849105292,2.0261,148.72,148.61,3.9815]
[1745849105790,2.0112,148.73,148.62,2.0556]
[1745849106891,2.0112,148.73,148.66,6.7241]
[1745849107294,6.7228,148.7,148.66,6.7241]
[1745849107991,6.7228,148.7,148.67,6.7239]
[1745849108295,6.723,148.69,148.62,2.0556]
[1745849108497,2.0112,148.73,148.63,6.7257]
[1745849109299,2.0112,148.73,148.62,6.726]
[1745849109498,2.0112,148.73,148.61,3.9815]
[1745849109499,6.7251,148.65,148.61,3.9815]
[1745849109698,20.2,148.71,148.57,1.9802]
[1745849109996,20.2,148.71,148.57,5.9115]
[1745849109997,6.7255,148.64,148.57,5.9115]
[1745849110404,6.7255,148.64,148.6,6.7268]
[1745849110591,6.7258,148.63,148.57,5.9115]
[1745849110799,1.9934,148.7,148.57,5.9115]
[1745849111400,20.2,148.68,148.57,10.6595]
[1745849111599,6.7269,148.61,148.56,484.18]
[1745849112000,6.7269,148.61,148.57,6.7282]
[1745849112503,6.7271,148.6,148.56,490.9088]
[1745849112709,2.0746,148.66,148.53,1.9372]
[1745849113004,6.728,148.59,148.54,6.7295]
[1745849113298,2.0746,148.66,148.53,1.9372]
[1745849113803,6.7281,148.58,148.53,1.9372]
[1745849114002,2.0746,148.66,148.49,2.0131]
[1745849114206,2.0746,148.66,148.49,3.9209]
[1745849115201,6.7282,148.58,148.49,3.9209]
[1745849115807,6.7282,148.58,148.52,6.7303]
[1745849116107,6.7282,148.58,148.49,3.9209]
[1745849116306,6.7285,148.57,148.52,6.7306]
[1745849116500,13.4498,148.65,148.48,484.14]
[1745849116697,6.7294,148.55,148.48,484.14]
[1745849116902,1.9586,148.64,148.51,6.7309]
[1745849117202,6.729,148.56,148.51,6.7309]
[1745849117506,1.9586,148.64,148.51,6.7309]
[1745849118306,6.7291,148.56,148.51,6.7309]
[1745849119203,6.7294,148.55,148.51,6.7309]
[1745849119504,1.9586,148.64,148.51,6.7309]
[1745849119901,6.727,148.61,148.51,6.7309]
[1745849120106,1.9591,148.6,148.51,6.7309]
[1745849120308,2.041,148.59,148.5,6.7314]
[1745849120610,6.7291,148.56,148.48,484.14]
[1745849120812,2.041,148.59,148.48,484.14]
[1745849121006,6.7292,148.56,148.48,484.14]
[1745849121215,6.7292,148.56,148.51,6.7309]
[1745849121409,6.7292,148.56,148.48,484.14]
[1745849121607,2.041,148.59,148.48,484.14]
[1745849121808,1.9591,148.6,148.48,484.14]
[1745849122513,2.41292,148.64,148.48,484.14]
[1745849122712,6.7264,148.62,148.48,484.14]
[1745849122914,2.41292,148.64,148.48,484.14]
[1745849123414,2.41292,148.64,148.52,6.7304]
[1745849123618,2.41292,148.64,148.48,484.14]
[1745849124014,2.41292,148.64,148.52,6.7305]
[1745849124719,6.7287,148.57,148.52,6.7305]
[1745849125214,6.7296,148.55,148.48,484.14]
[1745849125414,2.41292,148.64,148.48,484.14]
[1745849125810,6.7287,148.57,148.52,6.7305]
[1745849126212,6.7282,148.58,148.53,6.7299]
[1745849126414,2.41292,148.64,148.48,484.14]
[1745849126814,2.41292,148.64,148.53,6.7301]
[1745849127312,6.7285,148.57,148.52,6.7304]
[1745849127612,2.41292,148.64,148.52,6.7304]
[1745849127810,6.7289,148.57,148.52,6.7304]
[1745849128115,20.2,148.62,148.48,484.14]
[1745849128314,2.0163,148.61,148.48,484.14]
[1745849128514,2.0163,148.61,148.5,6.7313]
[1745849128814,2.0613,148.6,148.5,6.7313]
[1745849129015,6.7296,148.55,148.5,6.7313]
[1745849129517,6.7298,148.54,148.5,6.7313]
[1745849129816,2.0613,148.6,148.5,6.7313]
[1745849130017,6.7297,148.55,148.45,3.8837]
[1745849130516,2.0613,148.6,148.5,6.7312]
[1745849130716,6.7299,148.54,148.45,3.8837]
[1745849131016,6.7299,148.54,148.49,6.7318]
[1745849131816,6.7299,148.54,148.5,6.7314]
[1745849132514,6.7299,148.54,148.45,3.8837]
[1745849132716,6.7303,148.53,148.49,6.7318]
[1745849133817,6.7303,148.53,148.45,3.8837]
[1745849134317,6.7303,148.53,148.49,6.7318]
[1745849134716,6.7303,148.53,148.45,3.8837]
[1745849135518,6.7303,148.53,148.5,6.7315]
[1745849135718,6.7307,148.52,148.45,3.8837]
[1745849136417,6.7307,148.52,148.49,6.7318]
[1745849136817,6.7303,148.53,148.45,3.8837]
[1745849137118,20.2,148.59,148.49,6.7318]
[1745849137319,1.9974,148.58,148.49,6.7318]
[1745849137620,6.7309,148.52,148.49,6.7318]
[1745849138219,1.9974,148.58,148.45,3.8837]
[1745849139019,6.7314,148.51,148.45,3.8837]
[1745849139515,6.7314,148.51,148.48,6.7325]
[1745849139913,6.7312,148.51,148.48,6.7325]
[1745849140113,1.9974,148.58,148.45,3.8837]
[1745849140321,6.731,148.52,148.45,3.8837]
[1745849140521,1.9974,148.58,148.45,3.8837]
[1745849140922,6.7315,148.51,148.45,3.8837]
[1745849141121,6.7315,148.51,148.47,6.7327]
[1745849141617,6.7309,148.52,148.45,3.8837]
[1745849141921,1.9974,148.58,148.45,3.8837]
[1745849142921,1.9974,148.58,148.44,2.1134]
[1745849143324,3.16945261,148.58,148.44,2.1134]
[1745849143724,6.7315,148.51,148.46,6.7332]
[1745849143923,3.16945261,148.58,148.46,6.7332]
[1745849144824,6.7326,148.48,148.44,6.7343]
[1745849145025,3.16945261,148.58,148.41,2.0936]
[1745849145820,13.457,148.57,148.41,2.0936]
[1745849146019,20.2,148.56,148.41,2.0936]
[1745849146224,2.0386,148.55,148.41,2.0936]
[1745849146423,2.021,148.54,148.41,2.0936]
[1745849146625,6.7323,148.49,148.44,6.7342]
[1745849146926,6.7323,148.49,148.41,2.0936]
[1745849147227,6.7327,148.48,148.43,6.7346]
[1745849147426,2.021,148.54,148.41,2.0936]
[1745849147628,2.021,148.54,148.42,2.0163]
[1745849147829,6.7312,148.51,148.42,2.0163]
[1745849148030,2.021,148.54,148.42,2.0163]
[1745849148330,2.021,148.54,148.44,6.7341]
[1745849148829,6.7324,148.49,148.44,6.7341]
[1745849149030,2.021,148.54,148.42,2.0163]
[1745849149430,6.7313,148.51,148.42,2.0163]
[1745849149629,6.7313,148.51,148.46,6.7331]
[1745849149830,2.021,148.54,148.46,6.7331]
[1745849150125,2.021,148.54,148.45,6.7336]
[1745849150427,2.021,148.54,148.42,2.0163]
[1745849150833,2.021,148.54,148.48,6.7322]
[1745849151032,2.021,148.54,148.42,2.0163]
[1745849151229,2.0386,148.55,148.48,6.7324]
[1745849151425,2.0386,148.55,148.42,2.0163]
[1745849151831,2.0386,148.55,148.49,6.7318]
[1745849152431,2.0386,148.55,148.48,6.7323]
[1745849152827,2.0386,148.55,148.42,2.0163]
[1745849153032,6.7303,148.53,148.5,6.7316]
[1745849153241,6.7303,148.53,148.42,2.0163]
[1745849153439,2.0169,148.57,148.42,2.0163]
[1745849153631,2.0169,148.57,148.48,6.7321]
[1745849153828,2.0169,148.57,148.42,2.0163]
[1745849154026,6.731,148.52,148.42,2.0163]
[1745849154733,6.731,148.52,148.49,6.7317]
[1745849155336,6.73,148.54,148.43,13.4692]
[1745849155634,2.0169,148.57,148.43,13.4692]
[1745849156136,6.7303,148.53,148.51,6.731]
[1745849156335,1.9974,148.58,148.51,6.731]
[1745849157139,1.9974,148.58,148.52,6.7306]
[1745849157435,1.9974,148.58,148.44,13.4687]
[1745849157733,6.73,148.54,148.51,6.7311]
[1745849157937,1.9974,148.58,148.51,6.7311]
[1745849158435,1.9974,148.58,148.5,6.7314]
[1745849158839,6.73,148.54,148.44,13.4687]
[1745849159344,1.9974,148.58,148.44,13.4687]
[1745849159643,0.42473,148.59,148.45,13.4677]
[1745849159843,0.42473,148.59,148.46,2.1113]
[1745849160141,0.42473,148.59,148.53,6.7301]
[1745849160342,6.7291,148.56,148.53,6.7301]
[1745849160838,0.42473,148.59,148.48,1.9463]
[1745849161340,6.7286,148.57,148.51,6.7309]
[1745849161542,0.42473,148.59,148.51,6.7309]
[1745849162042,6.7294,148.55,148.51,6.7309]
[1745849162343,6.7294,148.55,148.52,6.7306]
[1745849162548,0.42473,148.59,148.48,1.9463]
[1745849162942,0.42473,148.59,148.54,6.7296]
[1745849163244,0.42473,148.59,148.48,1.9463]
[1745849163445,0.42473,148.59,148.53,6.73]
[1745849163643,6.7287,148.57,148.53,6.73]
[1745849163843,0.42473,148.59,148.48,1.9463]
[1745849164043,6.7282,148.58,148.48,1.9463]
[1745849164549,0.42473,148.59,148.54,6.7295]
[1745849165148,6.7282,148.58,148.54,6.7295]
[1745849165349,0.42473,148.59,148.54,6.7295]
[1745849165950,6.7284,148.58,148.54,6.7295]
[1745849166147,0.42473,148.59,148.48,1.9463]
[1745849167749,6.7282,148.58,148.48,1.9463]
[1745849167949,0.42473,148.59,148.48,1.9463]
[1745849168350,6.7285,148.57,148.53,6.7298]
[1745849168854,0.42473,148.59,148.53,6.7298]
[1745849169355,0.42473,148.59,148.54,6.7298]
[1745849169651,0.42473,148.59,148.48,1.9463]
[1745849169853,6.7286,148.57,148.48,1.9463]
[1745849170456,6.7286,148.57,148.54,6.7297]
[1745849170949,6.7282,148.58,148.55,6.7292]
[1745849171461,22.25,148.64,148.48,1.9463]
[1745849172153,6.7282,148.58,148.55,6.7291]
[1745849172358,22.25,148.64,148.48,15.4109]
[1745849172654,6.7278,148.59,148.48,15.4109]
[1745849172855,40.82692,148.67,148.48,1.9463]
[1745849173051,6.7269,148.61,148.58,6.7276]
[1745849173251,0.45432,148.67,148.5,484.52]
[1745849173755,6.7259,148.63,148.5,484.52]
[1745849174158,6.7259,148.63,148.6,6.7267]
[1745849174655,6.7263,148.62,148.53,3.965]
[1745849174958,6.7263,148.62,148.54,2.0195]
[1745849175150,6.7271,148.6,148.54,2.0195]
[1745849175353,6.7271,148.6,148.57,6.7282]
[1745849175557,6.7277,148.59,148.54,2.0195]
[1745849175760,0.45432,148.67,148.54,2.0195]
[1745849175952,0.45432,148.67,148.57,6.7284]
[1745849176152,2.40992,148.67,148.54,2.0195]
[1745849176554,2.40992,148.67,148.56,6.7288]
[1745849176755,2.40992,148.67,148.54,2.0195]
[1745849177049,6.7273,148.6,148.56,6.7286]
[1745849177453,6.7268,148.61,148.56,6.7286]
[1745849177752,6.7268,148.61,148.57,6.7283]
[1745849178161,2.40992,148.67,148.54,2.0195]
[1745849178558,6.7279,148.59,148.53,3.965]
[1745849178759,6.7279,148.59,148.54,6.7295]
[1745849178954,36.05782,148.67,148.53,1.9406]
[1745849179156,6.7282,148.58,148.54,6.7296]
[1745849179357,36.05782,148.67,148.53,1.9406]
[1745849179658,36.05782,148.67,148.54,6.7295]
[1745849180252,6.7281,148.58,148.54,6.7295]
[1745849180757,36.05782,148.67,148.54,6.7295]
[1745849181054,37.22935967,148.67,148.54,6.7295]
[1745849181259,6.7282,148.58,148.53,8.6707]
[1745849181560,6.7282,148.58,148.53,1.9406]
[1745849181760,6.7282,148.58,148.54,6.7295]
[1745849182456,6.7277,148.59,148.54,6.7295]
[1745849182662,37.22935967,148.67,148.54,6.7295]
[1745849182860,36.05782,148.67,148.55,6.7293]
[1745849183053,36.05782,148.67,148.53,1.9406]
[1745849183258,20.2,148.65,148.53,1.9406]
[1745849183560,20.2,148.65,148.5,484.52]
[1745849183762,6.7294,148.55,148.5,484.52]
[1745849183958,6.7294,148.55,148.51,6.7309]
[1745849184158,6.7294,148.55,148.49,1.9254]
[1745849184159,24.0603,148.62,148.49,1.9254]
[1745849184357,6.7291,148.56,148.49,1.9254]
[1745849184553,6.7291,148.56,148.51,6.7309]
[1745849184759,1.9534,148.61,148.51,6.7309]
[1745849184956,1.9534,148.61,148.42,497.8898]
[1745849185162,1.9534,148.61,148.48,6.7321]
[1745849185460,6.7305,148.53,148.48,6.7321]
[1745849186064,1.9534,148.61,148.49,6.732]
[1745849186258,1.9534,148.61,148.43,6.0429]
[1745849186458,6.7297,148.55,148.5,6.7313]
[1745849186660,1.9534,148.61,148.43,6.0429]
[1745849187459,6.728,148.58,148.44,1.21001546]
[1745849187664,6.728,148.58,148.45,13.4676]
[1745849187964,3.8603,148.62,148.43,6.0429]
[1745849188156,3.8603,148.62,148.55,6.7291]
[1745849188356,3.8603,148.62,148.46,13.4668]
[1745849188668,6.7287,148.57,148.54,6.7295]
[1745849189065,6.7287,148.57,148.46,13.4668]
[1745849189266,6.7282,148.58,148.55,6.7291]
[1745849190068,6.7287,148.57,148.54,6.7296]
[1745849190257,3.8603,148.62,148.54,6.7296]
[1745849190459,3.8603,148.62,148.46,13.4668]
[1745849190662,6.7292,148.56,148.53,6.73]
[1745849191166,6.7292,148.56,148.53,6.7299]
[1745849191470,6.7292,148.56,148.46,13.4668]
[1745849191661,24.0603,148.62,148.43,6.0429]
[1745849191859,24.0603,148.62,148.44,484.44]
[1745849192263,13.4534,148.61,148.52,6.7306]
[1745849192461,13.4534,148.61,148.44,484.44]
[1745849192767,24.0603,148.62,148.44,484.44]
[1745849192768,3.8603,148.62,148.44,484.44]
[1745849192969,6.7288,148.57,148.44,484.44]
[1745849193169,3.8603,148.62,148.45,1.20990396]
[1745849194066,1.932,148.62,148.45,1.20990396]
[1745849194267,2.0505,148.65,148.45,21.41060396]
[1745849194472,2.0505,148.65,148.46,1.20990396]
[1745849194668,2.0505,148.65,148.47,62.0]
[1745849194867,2.0505,148.65,148.51,13.4621]
[1745849195068,2.0505,148.65,148.52,6.1152]
[1745849195470,6.7268,148.61,148.52,6.1152]
[1745849195864,6.7268,148.61,148.58,6.7277]
[1745849196068,6.7268,148.61,148.52,6.1152]
[1745849198173,2.0505,148.65,148.52,6.1152]
[1745849198672,6.7273,148.6,148.52,6.1152]
[1745849199073,6.7273,148.6,148.57,6.7281]
[1745849199268,6.7273,148.6,148.52,6.1152]
[1745849199768,6.7268,148.61,148.58,6.7279]
[1745849199975,2.0505,148.65,148.58,6.7279]
[1745849200171,2.0505,148.65,148.52,6.1152]
[1745849200368,6.7282,148.58,148.52,6.1152]
[1745849200671,2.0505,148.65,148.52,6.1152]
[1745849200872,6.7278,148.59,148.56,6.7287]
[1745849201276,6.7278,148.59,148.52,6.1152]
[1745849201575,2.0505,148.65,148.52,6.1152]
[1745849202870,6.7267,148.61,148.52,6.1152]
[1745849203071,2.0505,148.65,148.52,6.1152]
[1745849203271,2.0505,148.65,148.59,6.7274]
[1745849203573,2.0505,148.65,148.52,6.1152]
[1745849203773,2.0505,148.65,148.59,6.7273]
[1745849203970,2.0505,148.65,148.52,6.1152]
[1745849204471,2.0505,148.65,148.53,13.4605]
[1745849204672,0.49867,148.69,148.53,13.4605]
[1745849204878,0.49867,148.69,148.54,484.34]
[1745849205075,6.7237,148.68,148.65,6.7247]
[1745849205275,0.49867,148.69,148.54,484.34]
[1745849205478,7.22187,148.69,148.66,6.7243]
[1745849206282,0.49867,148.69,148.67,6.7239]
[1745849206579,0.49867,148.69,148.59,13.455]
[1745849208086,0.49867,148.69,148.68,6.7235]
[1745849208378,0.49867,148.69,148.59,13.455]
[1745849208583,0.49867,148.69,148.67,6.7237]
[1745849209285,7.22167,148.69,148.66,6.7242]
[1745849209588,0.49867,148.69,148.66,6.7242]
[1745849210079,7.22187,148.69,148.66,6.7242]
[1745849211084,0.49867,148.69,148.59,13.455]
[1745849211486,0.49867,148.69,148.6,13.454]
[1745849211782,0.49867,148.69,148.68,6.7235]
[1745849212984,0.49867,148.69,148.61,13.4533]
[1745849213588,0.49867,148.69,148.67,6.7239]
[1745849213881,0.49867,148.69,148.61,13.4533]
[1745849214082,0.49867,148.69,148.68,6.7235]
[1745849217487,0.49867,148.69,148.67,6.7237]
[1745849217981,0.49867,148.69,148.65,6.7245]
[1745849218186,0.49867,148.69,148.58,6.1213]
[1745849218581,6.7249,148.65,148.58,6.1213]
[1745849218987,0.49867,148.69,148.58,6.1213]
[1745849219188,6.7248,148.66,148.63,6.7254]
[1745849219385,0.49867,148.69,148.63,6.7254]
[1745849219887,6.7246,148.66,148.63,6.7254]
[1745849220189,6.7241,148.67,148.64,6.7252]
[1745849220487,0.49867,148.69,148.58,6.1213]
[1745849220788,6.7239,148.67,148.58,6.1213]
[1745849220987,0.49867,148.69,148.58,6.1213]
[1745849221489,0.49867,148.69,148.59,13.4544]
[1745849221678,0.49867,148.69,148.58,6.1213]
[1745849222289,0.49867,148.69,148.68,6.7235]
[1745849225189,1.17081048,148.75,148.72,6.7215]
[1745849225394,1.17081048,148.75,148.64,484.08]
[1745849225692,1.17081048,148.75,148.65,6.7246]
[1745849225893,6.7241,148.67,148.56,484.04]
[1745849226093,1.17081048,148.75,148.56,484.04]
[1745849226292,1.17081048,148.75,148.63,6.7256]
[1745849226495,1.17081048,148.75,148.56,484.04]
[1745849226794,33.6416,148.74,148.63,6.7256]
[1745849227089,1.9743,148.73,148.56,484.04]
[1745849227394,1.9743,148.73,148.62,6.7259]
[1745849227694,3.8802,148.72,148.56,484.04]
[1745849228194,6.7241,148.67,148.64,6.7252]
[1745849228793,6.7243,148.67,148.63,6.7257]
[1745849228994,6.7243,148.67,148.56,484.04]
[1745849229194,6.7243,148.67,148.64,6.7252]
[1745849229394,6.7246,148.66,148.56,484.04]
[1745849229696,6.7246,148.66,148.63,6.7253]
[1745849229994,3.8802,148.72,148.63,6.7253]
[1745849230295,3.8802,148.72,148.64,6.7252]
[1745849230496,3.8802,148.72,148.57,2.0967]
[1745849230797,3.8802,148.72,148.63,6.7255]
[1745849230995,6.7245,148.66,148.63,6.7255]